[Event "11th Arad Open 2018"]
[Site "Arad"]
[Date "2018.08.06"]
[Round "2"]
[White "Aczel, Gergely"]
[Black "Voiteanu, Gabriel"]
[Result "1-0"]
[ECO "A58"]
[WhiteElo "2551"]
[BlackElo "2190"]
[Annotator "RC"]
[PlyCount "73"]
[EventDate "2018.08.05"]
[EventType "swiss"]
[EventCountry "ROU"]
[SourceTitle "playchess.com"]
[Source "ChessBase"]
[SourceQuality "1"]
[TimeControl "40/5400+30:1800+30"]

1. d4 {[%emt 0:00:00]} Nf6 {[%emt 0:00:00]} 2. c4 {[%emt 0:00:00]} c5 {[%emt 0:00:00]} 3. d5 {[%emt 0:00:00]} b5 {[%emt 0:00:03]} 4. cxb5 {[%emt 0:00:00]} a6 {[%emt 0:00:23]} 5. bxa6 {[%emt 0:00:00]} g6 {[%emt 0:02:34]} 6. Nc3 {[%emt 0:00:00]} Bxa6 {[%emt 0:00:16]} 7. e4 {[%emt 0:00:02]} Bxf1 {[%emt 0:00:57]} 8. Kxf1 {[%emt 0:00:02]} d6 {[%emt 0:02:46]} 9. Nf3 {[%emt 0:00:03]} Nbd7 {[%emt 0:00:26]} 10. g3 {[%emt 0:00:02]} Bg7 {[%emt 0:00:45]} 11. Kg2 {[%emt 0:00:03]} O-O {[%emt 0:00:25]} 12. a4 {[%emt 0:00:03]} Ra6 {[%emt 0:01:58]} 13. Qc2 {[%emt 0:00:31]} Qa8 {[%emt 0:01:39]} 14. Ra3 {[%emt 0:00:04]} Rb8 {[%emt 0:33:11]} 15. Nb5 {[%emt 0:11:40]} Rc8 {[%emt 0:10:53]} 16. Bd2 {[%emt 0:03:17]} c4 {[%emt 0:03:19]} 17. Nfd4 {[%emt 0:15:45]} Nc5 {[%emt 0:05:58]} 18. f3 {[%emt 0:03:42]} Nfd7 {[%emt 0:27:31]} 19. Nc6 {[%emt 0:04:47]} Rcxc6 {[%emt 0:01:02]} 20. dxc6 {[%emt 0:00:09]} Qxc6 {[%emt 0:01:08]} 21. Bc3 {[%emt 0:18:31]} Nxa4 {[%emt 0:03:30]} 22. Rxa4 {[%emt 0:07:23]} Qxb5 {[%emt 0:00:19]} 23. Rha1 {[%emt 0:00:03]} Nc5 {[%emt 0:01:36]} 24. Rxa6 {[%emt 0:00:57]} Nxa6 {[%emt 0:00:02]} 25. Qa4 {[%emt 0:00:32]} Nc7 {[%emt 0:01:05]} 26. Qxb5 {[%emt 0:03:05]} Nxb5 {[%emt 0:00:01]} 27. Ra8+ {[%emt 0:01:42]} Bf8 {[%emt 0:00:01]} 28. Bd2 {[%emt 0:00:14]} Kg7 {[%emt 0:00:22]} 29. Rc8 {[%emt 0:00:15]} c3 {[%emt 0:01:40]} 30. Bxc3+ {[%emt 0:00:05]} f6 {[%emt 0:00:11]} 31. Bd2 {[%emt 0:01:16]} Kf7 {[%emt 0:00:10]} 32. b4 {[%emt 0:00:40]} f5 {[%emt 0:00:10]} 33. Rb8 {[%emt 0:00:32]} Nd4 {[%emt 0:00:08]} 34. exf5 {[%emt 0:00:50]} gxf5 {[%emt 0:00:07]} 35. b5 {[%emt 0:00:23]} Bg7 {[%emt 0:00:53]} 36. b6 {[%emt 0:00:51]} Nc6 {[%emt 0:01:26]} 37. Rc8 {[%emt 0:00:19]} 1-0

[Event "11th Arad Open 2018"]
[Site "Arad"]
[Date "2018.08.06"]
[Round "2"]
[White "Daianu, Cristian-Clement"]
[Black "Gavrilescu, David"]
[Result "0-1"]
[ECO "C07"]
[WhiteElo "2166"]
[BlackElo "2468"]
[Annotator "RC"]
[PlyCount "58"]
[EventDate "2018.08.05"]
[EventType "swiss"]
[EventCountry "ROU"]
[SourceTitle "playchess.com"]
[Source "ChessBase"]
[SourceQuality "1"]
[TimeControl "40/5400+30:1800+30"]

1. e4 {[%emt 0:03:09]} e6 {[%emt 0:00:08]} 2. d4 {[%emt 0:00:10]} d5 {[%emt 0:00:24]} 3. Nd2 {[%emt 0:00:19]} c5 {[%emt 0:00:36]} 4. exd5 {[%emt 0:00:45]} Qxd5 {[%emt 0:00:13]} 5. Ngf3 {[%emt 0:00:09]} cxd4 {[%emt 0:00:45]} 6. Bc4 {[%emt 0:00:40]} Qd7 {[%emt 0:00:54]} 7. O-O {[%emt 0:04:46]} Nc6 {[%emt 0:00:52]} 8. Nb3 {[%emt 0:01:05]} a6 {[%emt 0:00:38]} 9. a4 {[%emt 0:00:16]} Nf6 {[%emt 0:03:11]} 10. Qe2 {[%emt 0:07:38]} Bd6 {[%emt 0:01:02]} 11. Rd1 {[%emt 0:09:03]} O-O {[%emt 0:01:08]} 12. Nbxd4 {[%emt 0:02:58]} e5 {[%emt 0:00:51]} 13. Nxc6 {[%emt 0:10:06]} Qxc6 {[%emt 0:00:17]} 14. Bg5 {[%emt 0:00:32]} Bc7 {[%emt 0:00:32]} 15. h3 {[%emt 0:05:53]} e4 {[%emt 0:07:18]} 16. Nd4 {[%emt 0:07:46]} Qd6 {[%emt 0:03:28]} 17. g3 {[%emt 0:05:59]} Bb6 {[%emt 0:24:28]} 18. Bf4 {[%emt 0:12:38]} Qe7 {[%emt 0:05:21]} 19. Kh2 {[%emt 0:13:19]} Rd8 {[%emt 0:04:48]} 20. c3 {[%emt 0:01:49]} Bc7 {[%emt 0:11:45]} 21. Qe3 {[%emt 0:05:14]} Bg4 {[%emt 0:12:42]} 22. Re1 {[%emt 0:01:28]} Rac8 {[%emt 0:02:34]} 23. Bxc7 {[%emt 0:00:12]} Qxc7 {[%emt 0:00:27]} 24. Bf1 {[%emt 0:00:41]} Bh5 {[%emt 0:00:29]} 25. Bg2 {[%emt 0:03:14]} Re8 {[%emt 0:00:18]} 26. Kg1 {[%emt 0:02:03]} h6 {[%emt 0:01:23]} 27. Qd2 {[%emt 0:00:52]} Rcd8 {[%emt 0:01:22]} 28. a5 {[%emt 0:00:21]} Rd5 {[%emt 0:01:18]} 29. Qc2 {[%emt 0:00:49]} Rxd4 {[%emt 0:00:17]} 0-1

[Event "11th Arad Open 2018"]
[Site "Arad"]
[Date "2018.08.06"]
[Round "2"]
[White "Rusan, Paul-Cristian"]
[Black "Miron, Lucian-Costin"]
[Result "0-1"]
[ECO "C45"]
[WhiteElo "2161"]
[BlackElo "2460"]
[Annotator "RC"]
[PlyCount "112"]
[EventDate "2018.08.05"]
[EventType "swiss"]
[EventCountry "ROU"]
[SourceTitle "playchess.com"]
[Source "ChessBase"]
[SourceQuality "1"]
[TimeControl "40/5400+30:1800+30"]

1. e4 {[%emt 0:00:00]} e5 {[%emt 0:00:00]} 2. Nf3 {[%emt 0:00:00]} Nc6 {[%emt 0:00:00]} 3. d4 {[%emt 0:00:17]} exd4 {[%emt 0:00:07]} 4. Nxd4 {[%emt 0:00:08]} Nf6 {[%emt 0:00:55]} 5. Nxc6 {[%emt 0:01:17]} bxc6 {[%emt 0:00:05]} 6. e5 {[%emt 0:00:18]} Qe7 {[%emt 0:06:40]} 7. Qe2 {[%emt 0:00:26]} Nd5 {[%emt 0:00:03]} 8. c4 {[%emt 0:00:16]} Nb6 {[%emt 0:00:03]} 9. Nc3 {[%emt 0:01:12]} Qe6 {[%emt 0:01:17]} 10. Qe4 {[%emt 0:01:21]} g6 {[%emt 0:00:49]} 11. Bd2 {[%emt 0:00:25]} Bb7 {[%emt 0:20:12]} 12. Bd3 {[%emt 0:12:02]} O-O-O {[%emt 0:02:57]} 13. O-O {[%emt 0:01:20]} c5 {[%emt 0:12:51]} 14. Qe2 {[%emt 0:02:00]} Bg7 {[%emt 0:01:03]} 15. Rfe1 {[%emt 0:18:45]} Rde8 {[%emt 0:11:52]} 16. Bf4 {[%emt 0:19:38]} g5 {[%emt 0:24:36]} 17. Bg3 {[%emt 0:00:49]} h5 {[%emt 0:00:58]} 18. h3 {[%emt 0:01:45]} h4 {[%emt 0:06:21]} 19. Bh2 {[%emt 0:00:10]} g4 {[%emt 0:00:32]} 20. Qxg4 {[%emt 0:08:05]} Qxg4 {[%emt 0:00:29]} 21. hxg4 {[%emt 0:00:02]} h3 {[%emt 0:00:08]} 22. Be4 {[%emt 0:12:39]} Nxc4 {[%emt 0:02:18]} 23. Bxb7+ {[%emt 0:01:37]} Kxb7 {[%emt 0:01:14]} 24. f4 {[%emt 0:00:36]} d6 {[%emt 0:03:44]} 25. Rac1 {[%emt 0:01:51]} Kc6 {[%emt 0:02:33]} 26. b3 {[%emt 0:01:51]} Nb2 {[%emt 0:00:33]} 27. Rc2 {[%emt 0:03:02]} Nd3 {[%emt 0:00:30]} 28. Re3 {[%emt 0:04:15]} Nb4 {[%emt 0:00:01]} 29. Rce2 {[%emt 0:00:55]} dxe5 {[%emt 0:00:59]} 30. gxh3 {[%emt 0:00:50]} e4 {[%emt 0:00:32]} 31. Kg2 {[%emt 0:00:59]} f5 {[%emt 0:00:10]} 32. gxf5 {[%emt 0:00:20]} Bd4 {[%emt 0:00:51]} 33. Nxe4 {[%emt 0:04:06]} Bxe3 {[%emt 0:00:22]} 34. Rxe3 {[%emt 0:00:09]} Nc2 {[%emt 0:00:39]} 35. Re2 {[%emt 0:02:05]} Nd4 {[%emt 0:00:04]} 36. Re1 {[%emt 0:00:09]} Nxf5 {[%emt 0:00:21]} 37. Re2 {[%emt 0:00:50]} Nd4 {[%emt 0:00:28]} 38. Re1 {[%emt 0:00:31]} Rh6 {[%emt 0:01:02]} 39. Bg1 {[%emt 0:01:05]} Rhe6 {[%emt 0:00:27]} 40. Bxd4 {[%emt 0:00:00]} cxd4 {[%emt 0:00:00]} 41. Rc1+ {[%emt 0:15:11]} Kd5 {[%emt 0:16:56]} 42. Ng5 {[%emt 0:01:02]} Re2+ {[%emt 0:05:31]} 43. Kg3 {[%emt 0:00:31]} R8e3+ {[%emt 0:00:22]} 44. Kg4 {[%emt 0:00:42]} Rc3 {[%emt 0:02:27]} 45. Rd1 {[%emt 0:06:25]} Rg2+ {[%emt 0:02:20]} 46. Kf5 {[%emt 0:00:40]} Rxa2 {[%emt 0:00:45]} 47. Ne4 {[%emt 0:04:08]} Rxh3 {[%emt 0:03:10]} 48. Rc1 {[%emt 0:04:27]} Rh5+ {[%emt 0:01:36]} 49. Kg4 {[%emt 0:00:38]} Rh8 {[%emt 0:01:23]} 50. Kf5 {[%emt 0:00:26]} Rf8+ {[%emt 0:00:39]} 51. Nf6+ {[%emt 0:00:12]} Kd6 {[%emt 0:00:05]} 52. Rd1 {[%emt 0:02:21]} c5 {[%emt 0:01:02]} 53. b4 {[%emt 0:00:12]} cxb4 {[%emt 0:00:42]} 54. Rxd4+ {[%emt 0:00:16]} Kc5 {[%emt 0:00:16]} 55. Rd1 {[%emt 0:00:32]} Ra6 {[%emt 0:00:12]} 56. Rc1+ {[%emt 0:00:39]} Kb5 {[%emt 0:00:07]} 0-1

[Event "11th Arad Open 2018"]
[Site "Arad"]
[Date "2018.08.06"]
[Round "3"]
[White "Vajda, Levente"]
[Black "Baratosi, Daniel"]
[Result "0-1"]
[ECO "B06"]
[WhiteElo "2558"]
[BlackElo "2371"]
[Annotator "RC"]
[PlyCount "66"]
[EventDate "2018.08.05"]
[EventType "swiss"]
[EventCountry "ROU"]
[SourceTitle "playchess.com"]
[Source "ChessBase"]
[SourceQuality "1"]
[TimeControl "40/5400+30:1800+30"]

1. Nf3 {[%emt 0:00:00]} g6 {[%emt 0:00:15]} 2. e4 {[%emt 0:01:14]} Bg7 {[%emt 0:00:48]} 3. d4 {[%emt 0:00:08]} d6 {[%emt 0:01:05]} 4. Nc3 {[%emt 0:00:37]} a6 {[%emt 0:01:25]} 5. a4 {[%emt 0:04:08]} b6 {[%emt 0:02:39]} 6. Bc4 {[%emt 0:03:42]} e6 {[%emt 0:00:31]} 7. Be3 {[%emt 0:04:01]} Ne7 {[%emt 0:04:39]} 8. Bb3 {[%emt 0:01:09]} h6 {[%emt 0:05:23]} 9. O-O {[%emt 0:06:40]} Nd7 {[%emt 0:07:36]} 10. Re1 {[%emt 0:04:00]} O-O {[%emt 0:04:31]} 11. h3 {[%emt 0:04:17]} Bb7 {[%emt 0:09:08]} 12. Bf4 {[%emt 0:01:27]} g5 {[%emt 0:13:11]} 13. Be3 {[%emt 0:04:08]} Ng6 {[%emt 0:00:18]} 14. Nd2 {[%emt 0:00:36]} Nf6 {[%emt 0:14:45]} 15. Qe2 {[%emt 0:03:24]} Qe7 {[%emt 0:02:44]} 16. Bc4 {[%emt 0:09:13]} Kh8 {[%emt 0:01:38]} 17. Bd3 {[%emt 0:00:29]} c5 {[%emt 0:06:12]} 18. dxc5 {[%emt 0:26:12]} bxc5 {[%emt 0:06:32]} 19. Nf3 {[%emt 0:08:17]} g4 {[%emt 0:03:19]} 20. hxg4 {[%emt 0:07:33]} Nxg4 {[%emt 0:00:02]} 21. Bd2 {[%emt 0:03:48]} Rg8 {[%emt 0:00:45]} 22. g3 {[%emt 0:02:23]} N6e5 {[%emt 0:02:30]} 23. Bf4 {[%emt 0:02:12]} Nxf3+ {[%emt 0:06:10]} 24. Qxf3 {[%emt 0:00:08]} Bd4 {[%emt 0:00:11]} 25. Nd1 {[%emt 0:00:45]} c4 {[%emt 0:03:16]} 26. Bxc4 {[%emt 0:00:34]} Qf6 {[%emt 0:01:04]} 27. Ra3 {[%emt 0:01:07]} Rac8 {[%emt 0:00:48]} 28. Rb3 {[%emt 0:01:00]} Rxc4 {[%emt 0:00:44]} 29. Rxb7 {[%emt 0:00:03]} Rxc2 {[%emt 0:00:43]} 30. Rf1 {[%emt 0:01:09]} e5 {[%emt 0:00:49]} 31. Qb3 {[%emt 0:00:08]} exf4 {[%emt 0:01:04]} 32. Rxf7 {[%emt 0:00:52]} Qh4 {[%emt 0:00:31]} 33. Rh7+ {[%emt 0:00:31]} Kxh7 {[%emt 0:00:02]} 0-1

[Event "11th Arad Open 2018"]
[Site "Arad"]
[Date "2018.08.06"]
[Round "3"]
[White "Antal, Gergely"]
[Black "Abramciuc, Marius"]
[Result "1-0"]
[ECO "C52"]
[WhiteElo "2549"]
[BlackElo "2357"]
[Annotator "ChessBase"]
[PlyCount "123"]
[EventDate "2018.08.05"]
[EventType "swiss"]
[EventCountry "ROU"]
[SourceTitle "playchess.com"]
[Source "ChessBase"]
[SourceQuality "1"]
[TimeControl "40/5400+30:1800+30"]

1. e4 {[%emt 0:00:00]} e5 {[%emt 0:00:00]} 2. Nf3 {[%emt 0:00:00]} Nc6 {[%emt 0:00:00]} 3. Bc4 {[%emt 0:00:15]} Bc5 {[%emt 0:00:00]} 4. b4 {[%emt 0:00:13]} Bxb4 {[%emt 0:01:20]} 5. c3 {[%emt 0:00:05]} Ba5 {[%emt 0:02:39]} 6. d4 {[%emt 0:00:33]} exd4 {[%emt 0:00:58]} 7. Qb3 {[%emt 0:00:12]} Qe7 {[%emt 0:00:41]} 8. O-O {[%emt 0:00:44]} d6 {[%emt 0:02:22]} 9. cxd4 {[%emt 0:01:30]} Bb6 {[%emt 0:01:45]} 10. Bb5 {[%emt 0:38:03]} Bd7 {[%emt 0:09:48]} 11. d5 {[%emt 0:09:12]} Nb8 {[%emt 0:04:47]} 12. Bc4 {[%emt 0:10:47]} Bg4 {[%emt 0:04:20]} 13. Bb2 {[%emt 0:00:32]} f6 {[%emt 0:05:50]} 14. a4 {[%emt 0:01:06]} a5 {[%emt 0:01:26]} 15. Nd4 {[%emt 0:01:39]} Nd7 {[%emt 0:04:28]} 16. Qg3 {[%emt 0:03:18]} Bxd4 {[%emt 0:06:25]} 17. Bxd4 {[%emt 0:00:02]} Bh5 {[%emt 0:00:17]} 18. Nc3 {[%emt 0:00:46]} Nh6 {[%emt 0:05:32]} 19. Nb5 {[%emt 0:02:54]} Ne5 {[%emt 0:00:52]} 20. Ba2 {[%emt 0:02:52]} Be2 {[%emt 0:10:21]} 21. Rfb1 {[%emt 0:00:19]} O-O {[%emt 0:02:31]} 22. Rb2 {[%emt 0:01:51]} Bxb5 {[%emt 0:04:52]} 23. Rxb5 {[%emt 0:00:02]} b6 {[%emt 0:00:21]} 24. Rc1 {[%emt 0:00:30]} Nd7 {[%emt 0:08:34]} 25. f3 {[%emt 0:02:39]} Rac8 {[%emt 0:01:32]} 26. Qh3 {[%emt 0:00:48]} Kh8 {[%emt 0:02:59]} 27. Bb1 {[%emt 0:02:06]} Nc5 {[%emt 0:02:49]} 28. Bc2 {[%emt 0:00:09]} Nf7 {[%emt 0:04:12]} 29. Re1 {[%emt 0:01:15]} Rce8 {[%emt 0:03:06]} 30. Bc3 {[%emt 0:00:57]} Qd7 {[%emt 0:01:03]} 31. Qh4 {[%emt 0:00:47]} Ne5 {[%emt 0:00:34]} 32. f4 {[%emt 0:06:39]} Qg4 {[%emt 0:00:11]} 33. Qxg4 {[%emt 0:00:29]} Nxg4 {[%emt 0:00:01]} 34. h3 {[%emt 0:00:18]} Nh6 {[%emt 0:00:09]} 35. e5 {[%emt 0:00:10]} fxe5 {[%emt 0:01:43]} 36. fxe5 {[%emt 0:00:05]} dxe5 {[%emt 0:02:42]} 37. Rxe5 {[%emt 0:00:03]} Nd7 {[%emt 0:00:51]} 38. Rxe8 {[%emt 0:07:05]} Rxe8 {[%emt 0:00:01]} 39. d6 {[%emt 0:03:31]} cxd6 {[%emt 0:01:29]} 40. Bb3 {[%emt 0:00:00]} Ng8 {[%emt 0:00:00]} 41. Bd4 {[%emt 0:18:45]} Rb8 {[%emt 0:20:13]} 42. Rd5 {[%emt 0:01:54]} Nc5 {[%emt 0:00:29]} 43. Bc2 {[%emt 0:01:01]} Rd8 {[%emt 0:01:07]} 44. Rf5 {[%emt 0:07:18]} Rd7 {[%emt 0:05:03]} 45. g4 {[%emt 0:00:06]} h6 {[%emt 0:03:06]} 46. h4 {[%emt 0:00:28]} Re7 {[%emt 0:01:34]} 47. Kf1 {[%emt 0:04:26]} Ne4 {[%emt 0:04:46]} 48. Rf8 {[%emt 0:00:06]} Nef6 {[%emt 0:01:48]} 49. Bb3 {[%emt 0:02:08]} d5 {[%emt 0:01:33]} 50. Bxf6 {[%emt 0:01:52]} gxf6 {[%emt 0:00:04]} 51. Bxd5 {[%emt 0:00:04]} Rg7 {[%emt 0:00:10]} 52. Be6 {[%emt 0:00:13]} h5 {[%emt 0:00:39]} 53. gxh5 {[%emt 0:00:21]} Kh7 {[%emt 0:00:24]} 54. Bf5+ {[%emt 0:00:12]} Kh6 {[%emt 0:01:54]} 55. Bg6 {[%emt 0:00:05]} b5 {[%emt 0:00:33]} 56. axb5 {[%emt 0:00:06]} a4 {[%emt 0:00:01]} 57. b6 {[%emt 0:01:02]} a3 {[%emt 0:00:13]} 58. Ra8 {[%emt 0:00:08]} Rb7 {[%emt 0:01:18]} 59. Rxg8 {[%emt 0:00:31]} Rxb6 {[%emt 0:00:04]} 60. Rh8+ {[%emt 0:00:08]} Kg7 {[%emt 0:00:03]} 61. Rh7+ {[%emt 0:00:04]} Kg8 {[%emt 0:00:40]} 62. Ra7 {[%emt 0:00:06]} 1-0

[Event "11th Arad Open 2018"]
[Site "Arad"]
[Date "2018.08.06"]
[Round "3"]
[White "Gavrilescu, David"]
[Black "Trifan, Andrei Ioan"]
[Result "1/2-1/2"]
[ECO "C54"]
[WhiteElo "2468"]
[BlackElo "2308"]
[Annotator "ChessBase"]
[PlyCount "97"]
[EventDate "2018.08.05"]
[EventType "swiss"]
[EventCountry "ROU"]
[SourceTitle "playchess.com"]
[Source "ChessBase"]
[SourceQuality "1"]
[TimeControl "40/5400+30:1800+30"]

1. e4 {[%emt 0:00:00]} e5 {[%emt 0:00:12]} 2. Nf3 {[%emt 0:00:19]} Nc6 {[%emt 0:01:09]} 3. Bc4 {[%emt 0:00:34]} Bc5 {[%emt 0:00:34]} 4. c3 {[%emt 0:00:26]} Nf6 {[%emt 0:01:12]} 5. d3 {[%emt 0:00:37]} O-O {[%emt 0:01:02]} 6. O-O {[%emt 0:00:32]} d5 {[%emt 0:00:25]} 7. exd5 {[%emt 0:01:20]} Nxd5 {[%emt 0:00:10]} 8. Re1 {[%emt 0:00:54]} Bg4 {[%emt 0:01:03]} 9. Nbd2 {[%emt 0:01:37]} Nb6 {[%emt 0:02:29]} 10. b4 {[%emt 0:02:16]} Be7 {[%emt 0:12:27]} 11. h3 {[%emt 0:01:15]} Bh5 {[%emt 0:03:24]} 12. g4 {[%emt 0:01:34]} Bg6 {[%emt 0:02:16]} 13. b5 {[%emt 0:00:37]} Na5 {[%emt 0:13:54]} 14. Nxe5 {[%emt 0:00:56]} Bf6 {[%emt 0:10:35]} 15. Nxg6 {[%emt 0:03:05]} hxg6 {[%emt 0:00:18]} 16. Ne4 {[%emt 0:00:44]} Naxc4 {[%emt 0:02:26]} 17. dxc4 {[%emt 0:01:26]} Nxc4 {[%emt 0:05:30]} 18. Qf3 {[%emt 0:08:01]} Ne5 {[%emt 0:04:07]} 19. Qg3 {[%emt 0:08:38]} Qd3 {[%emt 0:02:32]} 20. Nxf6+ {[%emt 0:17:48]} gxf6 {[%emt 0:00:13]} 21. Qxd3 {[%emt 0:00:13]} Nxd3 {[%emt 0:00:08]} 22. Re7 {[%emt 0:00:26]} Rfe8 {[%emt 0:10:33]} 23. Rxe8+ {[%emt 0:02:47]} Rxe8 {[%emt 0:00:04]} 24. Be3 {[%emt 0:00:11]} Re5 {[%emt 0:05:47]} 25. a4 {[%emt 0:04:51]} a6 {[%emt 0:05:49]} 26. Rb1 {[%emt 0:10:23]} axb5 {[%emt 0:06:20]} 27. axb5 {[%emt 0:01:20]} f5 {[%emt 0:01:28]} 28. Rd1 {[%emt 0:03:48]} f4 {[%emt 0:00:56]} 29. Bd4 {[%emt 0:07:51]} Re1+ {[%emt 0:00:04]} 30. Rxe1 {[%emt 0:00:06]} Nxe1 {[%emt 0:00:05]} 31. Kf1 {[%emt 0:03:03]} Nf3 {[%emt 0:02:56]} 32. Bf6 {[%emt 0:02:44]} c6 {[%emt 0:01:10]} 33. bxc6 {[%emt 0:08:30]} bxc6 {[%emt 0:01:13]} 34. Ke2 {[%emt 0:03:37]} Ng1+ {[%emt 0:00:18]} 35. Kf1 {[%emt 0:00:12]} Nf3 {[%emt 0:00:16]} 36. Ke2 {[%emt 0:02:09]} Ng1+ {[%emt 0:00:07]} 37. Kd3 {[%emt 0:00:07]} Nxh3 {[%emt 0:02:10]} 38. f3 {[%emt 0:00:05]} Ng1 {[%emt 0:00:40]} 39. Ke4 {[%emt 0:00:36]} Ne2 {[%emt 0:00:07]} 40. c4 {[%emt 0:00:00]} Kf8 {[%emt 0:00:00]} 41. Ke5 {[%emt 0:23:22]} Ke8 {[%emt 0:20:44]} 42. Kd6 {[%emt 0:03:53]} Ng1 {[%emt 0:03:34]} 43. Bg5 {[%emt 0:00:32]} Nxf3 {[%emt 0:03:13]} 44. Bxf4 {[%emt 0:00:21]} g5 {[%emt 0:03:20]} 45. Be3 {[%emt 0:01:37]} Nh2 {[%emt 0:00:39]} 46. Bxg5 {[%emt 0:00:07]} Nxg4 {[%emt 0:00:16]} 47. c5 {[%emt 0:00:04]} Nf2 {[%emt 0:00:46]} 48. Kxc6 {[%emt 0:00:06]} Ne4 {[%emt 0:00:11]} 49. Bf4 {[%emt 0:00:10]} 1/2-1/2

[Event "11th Arad Open 2018"]
[Site "Arad"]
[Date "2018.08.06"]
[Round "3"]
[White "Miron, Lucian-Costin"]
[Black "Nastase, Robert-Paul"]
[Result "1-0"]
[ECO "D31"]
[WhiteElo "2460"]
[BlackElo "2299"]
[Annotator "ChessBase"]
[PlyCount "69"]
[EventDate "2018.08.05"]
[EventType "swiss"]
[EventCountry "ROU"]
[SourceTitle "playchess.com"]
[Source "ChessBase"]
[SourceQuality "1"]
[TimeControl "40/5400+30:1800+30"]

1. d4 {[%emt 0:00:57]} d5 {[%emt 0:00:00]} 2. c4 {[%emt 0:00:06]} e6 {[%emt 0:00:00]} 3. Nc3 {[%emt 0:00:06]} Bb4 {[%emt 0:00:05]} 4. cxd5 {[%emt 0:01:25]} exd5 {[%emt 0:00:06]} 5. Bf4 {[%emt 0:00:38]} c6 {[%emt 0:00:06]} 6. e3 {[%emt 0:00:08]} Ne7 {[%emt 0:00:04]} 7. h4 {[%emt 0:00:32]} Bd6 {[%emt 0:04:24]} 8. Qf3 {[%emt 0:01:03]} h5 {[%emt 0:00:09]} 9. Bd3 {[%emt 0:08:48]} Bf5 {[%emt 0:00:45]} 10. Bxd6 {[%emt 0:06:35]} Bxd3 {[%emt 0:00:08]} 11. Ba3 {[%emt 0:00:09]} Qd7 {[%emt 0:17:59]} 12. Qg3 {[%emt 0:13:44]} Bg6 {[%emt 0:28:15]} 13. Nge2 {[%emt 0:23:08]} Rh6 {[%emt 0:03:22]} 14. f3 {[%emt 0:12:19]} Na6 {[%emt 0:13:20]} 15. e4 {[%emt 0:01:47]} b5 {[%emt 0:04:05]} 16. Bxe7 {[%emt 0:10:39]} Qxe7 {[%emt 0:02:31]} 17. exd5 {[%emt 0:02:01]} b4 {[%emt 0:06:00]} 18. d6 {[%emt 0:09:59]} Qe6 {[%emt 0:00:09]} 19. Ne4 {[%emt 0:01:05]} Bxe4 {[%emt 0:00:34]} 20. fxe4 {[%emt 0:00:32]} Qxe4 {[%emt 0:01:52]} 21. Qxg7 {[%emt 0:02:33]} Re6 {[%emt 0:00:57]} 22. O-O {[%emt 0:01:02]} O-O-O {[%emt 0:01:36]} 23. Rf2 {[%emt 0:01:34]} Rd7 {[%emt 0:02:02]} 24. Ng3 {[%emt 0:00:30]} Qd5 {[%emt 0:01:33]} 25. Nf5 {[%emt 0:00:25]} Kb7 {[%emt 0:01:04]} 26. Qg5 {[%emt 0:00:39]} c5 {[%emt 0:00:35]} 27. dxc5 {[%emt 0:00:26]} Nxc5 {[%emt 0:00:11]} 28. Rd2 {[%emt 0:00:35]} Qe5 {[%emt 0:00:20]} 29. Qxh5 {[%emt 0:00:24]} Ne4 {[%emt 0:01:24]} 30. Qf3 {[%emt 0:00:13]} Kb8 {[%emt 0:00:57]} 31. Rd4 {[%emt 0:00:47]} Qc5 {[%emt 0:00:32]} 32. Kh1 {[%emt 0:00:21]} Qxf5 {[%emt 0:00:43]} 33. Rxb4+ {[%emt 0:00:38]} Rb7 {[%emt 0:02:59]} 34. d7 {[%emt 0:00:27]} Rd6 {[%emt 0:03:48]} 35. Qxe4 {[%emt 0:00:41]} 1-0

[Event "11th Arad Open 2018"]
[Site "Arad"]
[Date "2018.08.06"]
[Round "3"]
[White "Womacka, Mathias"]
[Black "Florescu, Codrut-Constantin"]
[Result "1/2-1/2"]
[ECO "B81"]
[WhiteElo "2450"]
[BlackElo "2295"]
[Annotator "ChessBase"]
[PlyCount "89"]
[EventDate "2018.08.05"]
[EventType "swiss"]
[EventCountry "ROU"]
[SourceTitle "playchess.com"]
[Source "ChessBase"]
[SourceQuality "1"]
[TimeControl "40/5400+30:1800+30"]

1. e4 {[%emt 0:00:00]} c5 {[%emt 0:03:01]} 2. Nf3 {[%emt 0:00:00]} e6 {[%emt 0:00:23]} 3. d4 {[%emt 0:00:00]} cxd4 {[%emt 0:00:05]} 4. Nxd4 {[%emt 0:00:00]} Nf6 {[%emt 0:00:07]} 5. Nc3 {[%emt 0:00:00]} d6 {[%emt 0:00:04]} 6. g4 {[%emt 0:01:24]} a6 {[%emt 0:00:05]} 7. g5 {[%emt 0:00:11]} Nfd7 {[%emt 0:00:07]} 8. Be3 {[%emt 0:00:42]} b5 {[%emt 0:00:04]} 9. a3 {[%emt 0:00:18]} Bb7 {[%emt 0:00:05]} 10. h4 {[%emt 0:00:36]} Nc6 {[%emt 0:00:10]} 11. Nxc6 {[%emt 0:01:00]} Bxc6 {[%emt 0:00:06]} 12. Qd4 {[%emt 0:00:10]} f5 {[%emt 0:01:12]} 13. f3 {[%emt 0:13:30]} f4 {[%emt 0:04:13]} 14. Bd2 {[%emt 0:07:33]} e5 {[%emt 0:01:35]} 15. Qg1 {[%emt 0:09:51]} Nb6 {[%emt 0:00:26]} 16. O-O-O {[%emt 0:10:43]} Be7 {[%emt 0:15:43]} 17. Be1 {[%emt 0:22:54]} Qb8 {[%emt 0:06:38]} 18. Bf2 {[%emt 0:03:08]} Bd8 {[%emt 0:00:49]} 19. Qg4 {[%emt 0:03:28]} Bd7 {[%emt 0:04:15]} 20. Qh5+ {[%emt 0:01:14]} Kf8 {[%emt 0:04:36]} 21. Bh3 {[%emt 0:00:05]} Bxh3 {[%emt 0:04:23]} 22. Rxh3 {[%emt 0:00:02]} Qc8 {[%emt 0:00:12]} 23. Rh2 {[%emt 0:02:29]} Qe6 {[%emt 0:00:56]} 24. Rg2 {[%emt 0:00:57]} g6 {[%emt 0:04:21]} 25. Qg4 {[%emt 0:00:18]} Qxg4 {[%emt 0:00:05]} 26. Rxg4 {[%emt 0:00:03]} Nc8 {[%emt 0:00:09]} 27. Rd3 {[%emt 0:11:10]} Kf7 {[%emt 0:00:29]} 28. Nd5 {[%emt 0:00:53]} Ne7 {[%emt 0:05:31]} 29. Nb6 {[%emt 0:02:49]} Bxb6 {[%emt 0:00:08]} 30. Bxb6 {[%emt 0:00:03]} Ke6 {[%emt 0:00:22]} 31. Rg1 {[%emt 0:00:26]} Rac8 {[%emt 0:01:15]} 32. Rgd1 {[%emt 0:01:56]} Rc6 {[%emt 0:00:07]} 33. Ba5 {[%emt 0:00:10]} h6 {[%emt 0:00:21]} 34. gxh6 {[%emt 0:02:04]} Rxh6 {[%emt 0:00:06]} 35. Be1 {[%emt 0:00:07]} Rh8 {[%emt 0:02:38]} 36. b3 {[%emt 0:02:42]} Rhc8 {[%emt 0:00:09]} 37. R1d2 {[%emt 0:00:12]} Rd8 {[%emt 0:01:59]} 38. Rg2 {[%emt 0:02:30]} Rh8 {[%emt 0:00:39]} 39. Kb2 {[%emt 0:00:45]} Rhc8 {[%emt 0:00:20]} 40. Bb4 {[%emt 0:00:00]} Rh8 {[%emt 0:00:00]} 41. Rg4 {[%emt 0:23:38]} Rh6 {[%emt 0:18:04]} 42. Rd1 {[%emt 0:01:44]} Rh8 {[%emt 0:00:30]} 43. Rd3 {[%emt 0:01:18]} Rhc8 {[%emt 0:00:22]} 44. Rg2 {[%emt 0:01:24]} Rh8 {[%emt 0:00:11]} 45. Rg4 1/2-1/2